bitfinex/quotes_ETHUSD_20250413
["timestamp","ask_amount","ask_price","bid_price","bid_amount"]
[1744564567972,3.0,1599.1,1598.9,6.31682862]
[1744564568146,9.25365,1599.1,1598.8,13.41314805]
[1744564568341,9.25365,1599.1,1599.0,0.128319]
[1744564568557,17.58636709,1599.1,1598.8,12.402]
[1744564568765,17.58636709,1599.1,1599.0,0.128319]
[1744564568969,17.58636709,1599.1,1598.8,12.402]
[1744564569164,17.58636709,1599.1,1599.0,0.128319]
[1744564569165,11.33260709,1599.1,1599.0,0.128319]
[1744564569373,3.0,1599.1,1598.8,12.402]
[1744564569580,4.45255086,1599.2,1599.0,0.128319]
[1744564569786,4.92136827,1599.3,1598.9,13.39759]
[1744564570093,0.46881741,1599.3,1599.0,6.22253446]
[1744564570264,11.53512086,1599.4,1599.1,0.12667142]
[1744564571195,17.78765086,1599.4,1599.1,0.12667142]
[1744564571894,6.25284,1599.3,1599.1,0.12667142]
[1744564572396,4.45255086,1599.2,1599.1,0.12667142]
[1744564572570,17.78772086,1599.4,1599.1,0.12667142]
[1744564572983,6.25274,1599.3,1599.1,0.12667142]
[1744564573361,5.28275086,1599.4,1599.1,0.12667142]
[1744564573595,0.46531117,1599.4,1599.2,0.8893]
[1744564573797,17.28079772,1599.8,1599.3,6.25255]
[1744564573994,4.77887772,1599.8,1599.5,6.25194]
[1744564574295,4.45255086,1600.0,1599.6,7.0493]
[1744564574494,4.45255086,1600.0,1599.7,12.53604414]
[1744564574682,5.28275086,1600.2,1599.7,6.57146201]
[1744564574886,4.45255086,1600.0,1599.7,6.57146201]
[1744564575192,4.92906591,1600.0,1599.7,6.50895553]
[1744564575495,4.92906591,1600.0,1599.7,6.39263702]
[1744564575665,11.17913591,1600.0,1599.7,6.50895553]
[1744564576976,6.25056,1599.9,1599.7,6.50895553]
[1744564577182,7.99352959,1599.9,1599.7,6.50895553]
[1744564578891,14.24412959,1599.9,1599.7,6.50895553]
[1744564579073,7.99352959,1599.9,1599.7,6.50895553]
[1744564579477,14.24429959,1599.9,1599.7,6.50895553]
[1744564579685,6.25078,1599.8,1599.7,6.50895553]
[1744564579886,7.67521096,1599.8,1599.7,6.50895553]
[1744564580765,12.12776182,1599.8,1599.7,6.50895553]
[1744564582373,12.67776182,1599.8,1599.7,0.34895553]
[1744564582770,6.25132,1599.7,1599.4,7.0493]
[1744564582971,4.45255086,1599.8,1599.4,13.30151]
[1744564583175,10.70354086,1599.8,1599.4,14.63795303]
[1744564583475,10.70354086,1599.8,1599.4,20.89013303]
[1744564583807,4.45255086,1599.8,1599.4,20.89013303]
[1744564584397,3.55,1599.9,1599.6,0.8246]
[1744564586414,9.80043,1599.9,1599.6,0.8246]
[1744564586710,0.980043,1599.8,1599.6,0.8246]
[1744564586913,0.980043,1599.8,1599.5,0.8812]
[1744564587215,7.230843,1599.8,1599.5,0.8812]
[1744564587414,11.68339386,1599.8,1599.5,0.8812]
[1744564587617,11.68339386,1599.8,1599.6,0.34895553]
[1744564588916,5.43259386,1599.8,1599.6,0.34895553]
[1744564589310,5.43259386,1599.8,1599.5,0.8812]
[1744564589906,4.45255086,1599.8,1599.5,0.8812]
[1744564591022,4.45255086,1599.8,1599.5,7.13312]
[1744564591592,4.45255086,1599.8,1599.5,0.8812]
[1744564591995,4.45255086,1599.8,1599.5,7.13303]
[1744564592516,4.45255086,1599.8,1599.5,19.54486]
[1744564592722,4.45255086,1599.8,1599.5,13.29303]
[1744564593222,4.45255086,1599.8,1599.5,7.0412]
[1744564593421,0.55,1599.7,1599.5,6.16]
[1744564593622,0.55,1599.7,1599.3,6.16]
[1744564593623,6.25215,1599.5,1599.3,6.16]
[1744564593925,10.70500086,1599.4,1599.1,6.16]
[1744564594095,4.45255086,1599.4,1599.1,6.16]
[1744564594497,4.45255086,1599.4,1599.1,12.41339]
[1744564594691,10.28195847,1599.5,1599.1,12.41338]
[1744564595216,12.4705754,1599.5,1599.1,12.41338]
[1744564595926,12.4705754,1599.5,1599.1,6.16]
[1744564596089,18.7228154,1599.5,1599.1,6.16]
[1744564596805,6.25235,1599.4,1599.1,6.16]
[1744564597129,6.25278,1599.3,1599.1,6.16]
[1744564600695,12.50577,1599.3,1599.1,6.16]
[1744564600897,14.20160209,1599.3,1599.1,6.16]
[1744564601193,7.94861209,1599.3,1599.1,6.16]
[1744564602200,6.25312,1599.2,1599.1,6.16]
[1744564602394,5.32975086,1599.4,1599.1,6.16]
[1744564602723,16.53413847,1599.5,1599.1,12.41348]
[1744564602927,1.65341385,1599.4,1599.1,12.41348]
[1744564603123,10.28197847,1599.5,1599.1,12.41348]
[1744564603347,1.67745509,1599.8,1599.4,6.25234]
[1744564603527,6.25117,1599.7,1599.5,0.8937]
[1744564604118,6.25117,1599.7,1599.1,6.16]
[1744564604119,10.70425086,1599.6,1599.2,6.25306]
[1744564604514,3.55,1599.7,1599.4,6.25231]
[1744564604720,9.80147,1599.7,1599.3,0.8937]
[1744564604919,16.05301,1599.7,1599.3,7.14641]
[1744564605235,11.93974609,1599.7,1599.3,7.14641]
[1744564605431,11.93974609,1599.7,1599.3,13.39899]
[1744564605638,18.19119609,1599.7,1599.3,7.14628]
[1744564605815,6.25177,1599.6,1599.3,0.8937]
[1744564606010,6.25209,1599.5,1599.1,12.41347]
[1744564606329,13.38151,1599.5,1599.1,13.36961446]
[1744564606531,15.16491609,1599.5,1599.1,13.30709]
[1744564606839,5.00255086,1599.4,1599.1,7.0537]
[1744564607144,12.13287086,1599.2,1599.1,6.16]
[1744564607837,5.87975086,1599.2,1599.1,6.16]
[1744564608640,8.87975086,1599.2,1598.9,6.16]
[1744564608841,6.25383,1599.1,1598.9,6.16]
[1744564609041,21.38625086,1599.2,1598.9,6.16]
[1744564609211,21.86625347,1599.2,1598.9,6.16]
[1744564609716,6.25353,1599.1,1598.9,6.16]
[1744564609913,6.25469,1598.8,1598.6,4.18416781]
[1744564610134,4.45255086,1598.8,1598.6,4.18416781]
[1744564610855,6.25508,1598.7,1598.6,4.18416781]
[1744564611626,12.51039,1598.7,1598.4,7.0537]
[1744564612143,12.51036,1598.7,1598.4,7.0537]
[1744564612442,6.25551,1598.6,1598.4,7.0537]
[1744564612643,6.25551,1598.6,1598.2,10.34416781]
[1744564612644,6.25664,1598.3,1598.2,10.34416781]
[1744564614415,6.25664,1598.3,1598.2,4.3106099]
[1744564614416,9.80664,1598.3,1598.2,4.3106099]
[1744564614657,11.15546554,1598.3,1598.2,4.3106099]
[1744564614966,13.34190918,1598.3,1598.2,4.3106099]
[1744564615758,13.34190918,1598.3,1598.2,4.18416781]
[1744564615923,13.34190918,1598.3,1598.2,0.18567289]
[1744564616323,7.6858,1597.8,1597.7,5.43941815]
[1744564616632,15.13835086,1597.8,1597.7,5.43941815]
[1744564616833,7.45255086,1597.8,1597.7,5.43941815]
[1744564617044,7.45255086,1597.8,1597.5,7.0665]
[1744564617371,13.71135086,1597.8,1597.5,7.0665]
[1744564617728,19.97031086,1597.8,1597.5,7.0665]
[1744564617931,6.259,1597.7,1597.5,6.16]
[1744564620068,20.43750781,1597.8,1597.5,6.16]
[1744564620361,8.30296678,1597.7,1597.5,6.16]
[1744564620669,6.25921,1597.7,1597.5,6.16]
[1744564621048,10.71230086,1597.6,1597.4,6.16]
[1744564621349,6.80978,1597.5,1597.4,6.16]
[1744564622030,10.71230086,1597.6,1597.4,6.16]
[1744564622435,4.45255086,1597.6,1597.4,6.16]
[1744564623135,3.46721695,1597.8,1597.5,6.2596]
[1744564623335,9.72581695,1597.8,1597.5,6.2596]
[1744564623548,9.72581695,1597.8,1597.4,13.752812]
[1744564623873,6.25945,1597.6,1597.4,6.16]
[1744564624569,10.71178086,1597.7,1597.4,6.16]
[1744564625667,4.45255086,1597.7,1597.4,12.42009]
[1744564625920,3.0,1597.7,1597.5,6.25963]
[1744564626092,3.0,1597.7,1597.5,6.25959]
[1744564626237,3.0,1597.7,1597.6,0.837]
[1744564626550,0.46721695,1597.8,1597.6,13.35547]
[1744564626745,3.0,1597.9,1597.6,13.35547]
[1744564627484,3.47847068,1597.9,1597.6,7.09622]
[1744564627686,3.47847068,1597.9,1597.6,13.25622]
[1744564627843,9.73680068,1597.9,1597.6,13.25622]
[1744564628043,3.47847068,1597.9,1597.6,13.25622]
[1744564628348,16.96688086,1598.2,1597.8,6.25843]
[1744564628679,3.0,1598.1,1597.8,12.41843]
[1744564628838,16.96692086,1598.2,1597.8,12.41843]
[1744564628839,10.70963086,1598.2,1597.8,12.41842]
[1744564629034,10.70963086,1598.2,1597.9,6.2582]
[1744564629861,8.44314364,1598.3,1598.0,7.15261]
[1744564630034,14.70003364,1598.3,1598.0,0.8948]
[1744564630235,3.0,1598.2,1598.0,0.8948]
[1744564630471,3.47457419,1598.2,1598.0,7.15257]
[1744564630836,3.47457419,1598.2,1598.0,13.37504694]
[1744564631034,3.47457419,1598.2,1598.0,19.5701]
[1744564632172,0.47457419,1598.2,1598.0,19.57009]
[1744564632363,3.0,1598.3,1598.0,19.57009]
[1744564632571,3.0,1598.3,1598.1,6.25741]
[1744564633582,3.0,1598.3,1598.0,13.31253]
[1744564633960,3.0,1598.3,1598.0,19.5702]
[1744564634140,3.0,1598.3,1598.1,6.25736]
[1744564634475,3.47867846,1598.3,1598.1,6.25736]
[1744564634702,3.47867846,1598.3,1598.1,6.25726]
[1744564634871,3.47867846,1598.3,1598.0,13.31254]
[1744564635075,9.73549846,1598.3,1598.0,13.31254]
[1744564635580,9.73549846,1598.3,1598.0,19.5702]
[1744564635743,3.47867846,1598.3,1598.0,19.5702]
[1744564636145,3.47867846,1598.3,1598.1,6.25737]
[1744564637276,5.52307939,1598.3,1598.1,6.2574]
[1744564637477,3.47867846,1598.3,1598.0,19.5704]
[1744564637680,15.99229846,1598.3,1598.0,13.3126]
[1744564638045,6.25707,1598.2,1598.0,6.16]
[1744564639277,10.70962086,1598.2,1598.0,6.16]
[1744564639477,10.70962086,1598.2,1597.8,13.33231]
[1744564639478,7.08599,1598.0,1597.8,6.16]
[1744564639648,7.08599,1598.0,1597.6,6.16]
[1744564639649,6.25863,1597.8,1597.6,6.16]
[1744564640660,16.775239,1597.9,1597.6,12.41938]
[1744564640862,6.25866,1597.8,1597.6,6.16]
[1744564642099,12.51744,1597.8,1597.6,6.16]
[1744564642470,6.25899,1597.7,1597.5,6.16]
[1744564643504,7.95601009,1597.7,1597.5,6.16]
[1744564643950,6.25938,1597.6,1597.5,6.16]
[1744564644997,1.69702009,1597.7,1597.5,12.41963]
[1744564645201,3.0,1597.8,1597.5,18.67923]
[1744564645399,3.0,1597.8,1597.7,7.08189]
[1744564645561,0.45925932,1597.9,1597.7,13.34074]
[1744564645759,3.0,1598.0,1597.8,6.2586]
[1744564646985,3.0,1598.0,1597.8,6.25845]
[1744564650055,3.0,1598.0,1597.7,19.50082]
[1744564650259,9.25788,1598.0,1597.7,13.24186]
[1744564650489,10.809425,1598.0,1597.7,13.24186]
[1744564651192,10.809425,1598.0,1597.8,6.16]
[1744564652203,4.551545,1598.0,1597.8,12.41856]
[1744564652397,3.0,1598.0,1597.8,18.677]
[1744564652602,3.0,1598.0,1597.8,12.41844]
[1744564654595,3.0,1598.0,1597.8,6.16]
[1744564655394,9.25789,1598.0,1597.8,6.16]
[1744564658068,9.80821,1597.9,1597.8,6.16]
[1744564658387,6.25938,1597.6,1597.5,6.16]
[1744564659298,6.73362447,1597.6,1597.5,6.16]
[1744564659799,0.47424447,1597.6,1597.5,6.16]
[1744564660002,6.25913,1597.7,1597.5,6.16]
[1744564661571,12.51831,1597.7,1597.5,6.16]
[1744564661879,14.29972609,1597.7,1597.5,6.16]
[1744564662699,3.0,1597.8,1597.5,6.16]
[1744564662901,3.47714043,1597.8,1597.6,0.846]
[1744564663105,3.47714043,1597.8,1597.6,7.10518]
[1744564663470,4.77915902,1598.1,1597.7,6.16]
[1744564663471,0.32660816,1598.1,1597.7,6.16]
[1744564663675,4.45255086,1598.4,1597.9,0.846]
[1744564663874,0.32655536,1598.4,1598.1,6.25729]
[1744564664099,0.47498121,1598.4,1598.1,18.67458]
[1744564664405,7.08559,1598.5,1598.1,6.16]
[1744564664406,10.08554,1598.5,1598.1,6.16]
[1744564664619,6.25681,1598.3,1598.1,6.16]
[1744564664799,6.25703,1598.2,1598.1,6.16]
[1744564665881,8.058414,1598.2,1598.1,6.16]
[1744564666109,12.51536,1598.1,1597.8,6.16]
[1744564666279,6.2576,1598.1,1597.8,6.16]
[1744564666478,3.0,1598.1,1597.8,12.41841]
[1744564667175,3.0,1598.1,1597.8,6.16]
[1744564667520,6.25672,1598.3,1598.0,6.25782]
[1744564667683,3.0,1598.4,1598.2,6.25687]
[1744564667887,3.0,1598.4,1598.1,6.31992721]
[1744564668117,3.0,1598.4,1598.1,12.51459]
[1744564668287,3.0,1598.4,1598.1,12.57715546]
[1744564668472,3.0,1598.4,1598.1,12.51459]
[1744564668677,3.0,1598.4,1598.1,6.25724]
[1744564669072,3.0,1598.4,1598.1,12.57711545]
[1744564669271,3.0,1598.4,1598.2,6.25691]
[1744564669580,3.0,1598.4,1598.2,6.2569]
[1744564670197,10.23012746,1598.4,1598.0,13.35579]
[1744564670372,6.2567,1598.3,1598.0,13.35579]
[1744564671110,10.23012746,1598.4,1598.0,19.61344]
[1744564671309,10.23012746,1598.4,1598.0,13.35575]
[1744564671310,6.25668,1598.3,1598.0,13.35575]
[1744564671683,14.16224075,1598.3,1598.0,12.386]
[1744564671874,8.76176075,1598.3,1598.0,18.64371]
[1744564672077,8.76176075,1598.3,1598.0,24.90138]
[1744564672309,8.76176075,1598.3,1598.0,18.64367]
[1744564674307,8.76176075,1598.3,1598.0,12.386]
[1744564675111,15.01867075,1598.3,1598.0,12.386]
[1744564675418,8.76176075,1598.3,1598.0,12.386]
[1744564676093,8.76176075,1598.3,1598.0,18.64366]
[1744564676613,8.76176075,1598.3,1598.0,12.386]
[1744564676812,7.13353608,1598.2,1598.0,12.386]
[1744564677121,6.25743,1598.1,1598.0,6.16]
[1744564677618,6.25743,1598.1,1597.9,6.16]
[1744564677817,6.25782,1598.0,1597.9,6.16]
[1744564678018,7.11422,1598.0,1597.9,6.16]
[1744564678178,8.451385,1598.0,1597.9,6.16]
[1744564679816,3.45964623,1598.1,1597.9,7.0321]
[1744564680116,6.25672,1598.3,1597.9,7.09467862]
[1744564680298,12.51355,1598.3,1598.0,6.25779]
[1744564680615,12.51355,1598.3,1597.9,13.29017]
[1744564680913,7.808075,1598.3,1597.9,13.29017]
[1744564681323,6.25706,1598.2,1597.9,13.29017]
[1744564681823,7.808055,1598.3,1597.9,13.29017]
[1744564682417,6.2567,1598.3,1598.0,6.25768]
[1744564682619,6.2567,1598.3,1598.0,18.73790039]
[1744564682922,6.2567,1598.3,1598.0,18.67534]
[1744564683298,12.51276,1598.4,1598.0,18.67534]
[1744564683707,6.25668,1598.3,1598.0,12.41765]
[1744564683911,6.25668,1598.3,1598.0,12.48022038]
[1744564684221,6.25668,1598.3,1598.0,18.73789038]
[1744564684411,6.25668,1598.3,1598.0,18.67532]
[1744564685023,12.51268,1598.4,1598.0,18.67532]
[1744564685226,13.95260246,1598.4,1598.0,18.67532]
[1744564686723,13.95263246,1598.4,1598.0,18.67532]
[1744564686919,1.43992246,1598.4,1598.1,7.11838]
[1744564687124,1.43992246,1598.4,1598.2,6.25689]
[1744564687491,1.43992246,1598.4,1598.1,13.37612]
[1744564687709,6.2568,1598.3,1598.0,6.16]
[1744564687909,6.88293,1598.2,1598.0,6.16]
[1744564688102,6.25743,1598.1,1598.0,6.16]
[1744564688996,6.72860544,1598.1,1598.0,6.16]
[1744564690108,0.47117544,1598.1,1598.0,6.16]
[1744564690310,12.51446,1598.2,1598.0,6.16]
[1744564690493,13.140182,1598.2,1598.0,6.16]
[1744564691222,13.140312,1598.2,1598.0,6.16]
[1744564691421,13.140212,1598.2,1598.0,6.16]
[1744564691923,6.25743,1598.1,1598.0,6.16]
[1744564692117,7.5714672,1598.1,1598.0,6.16]
[1744564692724,8.04517659,1598.1,1598.0,6.16]
[1744564693514,1.78774659,1598.1,1598.0,6.16]
[1744564693829,6.882942,1598.2,1598.0,6.16]
[1744564694311,13.140212,1598.2,1598.0,6.16]
[1744564696118,6.882942,1598.2,1598.0,6.16]
[1744564696321,6.25722,1598.2,1598.0,6.16]
[1744564696521,6.80638,1598.4,1598.1,0.8892]
[1744564697127,6.25638,1598.4,1598.1,7.14659]
[1744564698439,3.0,1598.4,1598.1,0.8892]
[1744564698642,6.25685,1598.3,1598.1,0.8892]
[1744564699193,12.5137,1598.3,1598.1,0.8892]
[1744564699398,12.51294,1598.4,1598.1,0.8892]
[1744564699603,6.25665,1598.3,1598.1,0.8892]
[1744564699805,12.51357,1598.3,1598.1,0.8892]
[1744564700733,6.25703,1598.2,1598.1,0.8892]
[1744564701029,2.49360846,1598.4,1598.0,7.10497211]
[1744564701213,7.85571846,1598.4,1598.0,13.36260211]
[1744564701418,12.513,1598.4,1598.0,21.51648021]
[1744564701619,6.25641,1598.4,1598.1,6.2574]
[1744564702700,12.51297,1598.4,1598.0,21.51648021]
[1744564703032,12.51286,1598.4,1598.1,7.202384]
[1744564703235,12.51286,1598.4,1598.1,7.13982]
[1744564703534,12.51286,1598.4,1598.1,0.8824]
[1744564703535,6.25668,1598.3,1598.1,0.8824]
[1744564704534,12.51302,1598.4,1598.1,0.94496534]
[1744564704739,6.25666,1598.3,1598.1,0.94496534]
[1744564704910,6.25666,1598.3,1598.1,0.8824]
[1744564705101,12.51366,1598.3,1598.1,0.8824]
[1744564705302,13.765026,1598.3,1598.1,0.8824]
[1744564705516,1.251366,1598.3,1598.1,0.8824]
[1744564705834,12.51274,1598.4,1598.1,7.13981]
[1744564706039,6.25631,1598.4,1598.1,0.94496838]
[1744564706225,6.25631,1598.4,1598.1,7.20235838]
[1744564706930,12.51277,1598.4,1598.2,6.16]
[1744564707099,6.25664,1598.3,1598.2,6.16]
[1744564707306,6.25631,1598.4,1598.2,6.16]
[1744564707511,12.51282,1598.4,1598.2,6.16]
[1744564707837,6.25631,1598.4,1598.2,6.16]
[1744564708328,9.73605456,1598.5,1598.2,12.41702]
[1744564708545,9.73605456,1598.5,1598.3,13.299]
[1744564708546,0.48014456,1598.5,1598.3,13.299]
[1744564708707,6.25551,1598.6,1598.3,13.29881]
[1744564710126,6.25588,1598.5,1598.3,7.0424]
[1744564710324,12.51194,1598.5,1598.3,7.0424]
[1744564710503,12.51195,1598.5,1598.3,7.0424]
[1744564711036,6.25625,1598.4,1598.3,6.16]
[1744564711337,6.73261028,1598.4,1598.3,6.16]
[1744564712409,7.507075,1598.5,1598.3,6.16]
[1744564713043,6.2555,1598.6,1598.4,0.8824]
[1744564713221,6.2555,1598.6,1598.4,7.0424]
[1744564713627,6.71947266,1598.6,1598.4,7.0424]
[1744564714032,0.46397266,1598.6,1598.4,7.0424]
[1744564714209,6.25518,1598.7,1598.4,7.0424]
[1744564714411,16.40391,1598.8,1598.4,13.29859]
[1744564714613,11.39552702,1598.8,1598.5,0.06255388]
[1744564714813,11.39576702,1598.8,1598.4,13.29858]
[1744564715012,7.14799,1599.1,1598.7,6.25481]
[1744564715239,7.14799,1599.1,1598.7,12.47735721]
[1744564715411,6.25313,1599.2,1598.9,6.25419]
[1744564715735,6.25313,1599.2,1598.8,0.8824]
[1744564715736,6.25367,1599.1,1598.8,0.8824]
[1744564715942,6.25393,1599.0,1598.8,0.8824]
[1744564716125,1.29774408,1599.0,1598.7,12.384]
[1744564716312,6.25464,1598.9,1598.7,12.384]
[1744564716528,6.25469,1598.8,1598.7,12.384]
[1744564716727,7.13929,1598.8,1598.7,6.16]
[1744564718539,7.13929,1598.8,1598.5,6.22255079]
[1744564718540,13.39432,1598.8,1598.5,6.22255079]
[1744564719627,7.13929,1598.8,1598.5,6.22255079]
[1744564719954,6.25439,1598.9,1598.5,18.73412079]
[1744564720121,6.25439,1598.9,1598.6,6.25538]
[1744564720446,7.946895,1598.9,1598.6,6.25538]
[1744564720817,14.201385,1598.9,1598.6,6.25538]
[1744564721017,7.946895,1598.9,1598.6,6.25538]
[1744564721329,6.25483,1598.8,1598.5,12.41573]
[1744564721539,6.25483,1598.8,1598.5,12.47828096]
[1744564721950,12.50983,1598.8,1598.5,6.22255096]
[1744564722749,6.25483,1598.8,1598.5,6.22255096]
[1744564723252,6.25483,1598.8,1598.5,12.47837096]
[1744564723547,12.50987,1598.8,1598.5,6.16]
[1744564723952,12.50987,1598.8,1598.5,6.22255097]
[1744564724255,6.25523,1598.7,1598.5,6.16]
[1744564725551,6.25474,1598.8,1598.5,6.16]
[1744564726750,12.50959,1598.8,1598.5,6.16]
[1744564727754,6.25508,1598.7,1598.5,6.16]
[1744564728159,6.25474,1598.8,1598.5,6.16]
[1744564728320,6.25474,1598.8,1598.5,6.22255097]
[1744564728651,12.5098,1598.8,1598.5,12.47834097]
[1744564728854,6.25474,1598.8,1598.5,12.47834097]
[1744564729020,12.5098,1598.8,1598.5,12.47834097]
[1744564729543,6.25508,1598.7,1598.5,6.22255097]
[1744564729716,6.25508,1598.7,1598.5,6.16]
[1744564730221,6.72809015,1598.7,1598.5,6.16]
[1744564730422,6.72809015,1598.7,1598.5,6.22255099]
[1744564731151,6.72809015,1598.7,1598.5,6.16]
[1744564731552,0.47301015,1598.7,1598.5,6.222551]
[1744564731859,12.50972,1598.8,1598.5,6.222551]
[1744564732060,13.9299425,1598.8,1598.5,6.222551]
[1744564732560,13.9299425,1598.8,1598.5,6.16]
[1744564733464,13.9299425,1598.8,1598.5,6.22255102]
[1744564734666,13.9299425,1598.8,1598.5,6.16]
[1744564735763,6.25512,1598.7,1598.5,6.16]
[1744564736067,6.25547,1598.6,1598.5,6.16]
[1744564736631,13.38678,1598.7,1598.5,6.16]
[1744564736832,14.86748025,1598.7,1598.5,6.16]
[1744564737370,14.8060725,1598.8,1598.5,12.41572]
[1744564737570,8.5511425,1598.8,1598.5,12.41571]
[1744564737869,14.8061925,1598.8,1598.5,6.16]
[1744564738161,8.5511425,1598.8,1598.5,12.41584]
[1744564738367,12.5104,1598.7,1598.5,6.16]
[1744564738569,13.99104225,1598.7,1598.5,6.16]
[1744564739171,7.73576225,1598.7,1598.5,6.16]
[1744564739566,8.19924934,1598.7,1598.5,6.16]
[1744564740339,6.71856709,1598.7,1598.5,6.16]
[1744564744811,12.97379709,1598.7,1598.5,6.16]
[1744564745290,12.97390709,1598.7,1598.5,6.16]
[1744564746098,13.39449,1598.6,1598.4,6.16]
[1744564746391,6.25586,1598.5,1598.4,6.16]
[1744564746560,8.220895,1598.5,1598.4,6.16]
[1744564746756,8.770895,1598.5,1598.4,6.16]
[1744564747786,1.965035,1598.5,1598.4,6.16]
[1744564748095,0.8832,1598.9,1598.5,6.25586]
[1744564748397,7.04989439,1599.1,1598.5,6.25586]
[1744564748398,0.46984084,1599.1,1598.7,0.8983]
[1744564748563,13.38915,1599.3,1598.9,6.25408]
[1744564748758,3.0,1599.2,1598.9,12.41408]
[1744564748958,3.0,1599.2,1599.0,7.15219]
[1744564749181,9.25324,1599.2,1599.0,0.8983]
[1744564749391,7.13612,1599.3,1599.0,0.8983]
[1744564749571,7.13612,1599.3,1599.0,7.1522]
[1744564749572,6.25292,1599.3,1599.0,7.1522]
[1744564749881,6.25292,1599.3,1599.0,7.2147326]
[1744564750078,6.25292,1599.3,1599.0,15.70974348]
[1744564750256,6.25292,1599.3,1599.0,9.39331088]
[1744564750462,6.25292,1599.3,1599.0,9.4558427]
[1744564751483,6.72252029,1599.3,1599.0,9.4558427]
[1744564751894,0.46960029,1599.3,1599.0,15.7095927]
[1744564752219,6.25163,1599.6,1599.2,6.25281]
[1744564752514,0.48016018,1599.7,1599.4,6.25219]
[1744564752796,12.93999405,1599.8,1599.5,6.16]
[1744564752985,6.25127,1599.7,1599.5,6.16]
[1744564753184,12.97346114,1599.7,1599.5,6.16]
[1744564753383,6.72205114,1599.7,1599.5,6.16]
[1744564754711,6.25156,1599.6,1599.5,6.16]
[1744564756669,6.252,1599.5,1599.3,13.2723]
[1744564757319,6.72206114,1599.7,1599.3,19.52472]
[1744564757467,6.72206114,1599.7,1599.3,25.77744]
[1744564758083,12.97346114,1599.7,1599.3,25.77744]
[1744564758266,12.97346114,1599.7,1599.3,22.102464]
[1744564758467,6.2517,1599.6,1599.3,22.102714]
[1744564759103,6.25121,1599.7,1599.4,0.06251819]
[1744564759277,0.4712032,1599.7,1599.4,6.31463819]
[1744564759479,6.2508,1599.8,1599.4,6.31463819]
[1744564759663,12.50178,1599.8,1599.5,6.25191]
[1744564759867,6.25118,1599.7,1599.3,19.523]
[1744564760491,6.25161,1599.6,1599.3,19.523]
[1744564760679,6.25118,1599.7,1599.4,6.25228]
[1744564760862,6.72647961,1599.7,1599.4,6.25228]
[1744564761067,9.25024,1600.0,1599.6,7.08886]
[1744564761271,6.25024,1600.0,1599.7,6.25111]
[1744564761495,12.50055,1600.0,1599.6,13.24886]
[1744564762004,6.25042,1599.9,1599.6,13.24886]
[1744564762312,6.25015,1600.0,1599.7,7.11230885]
[1744564762501,6.24961,1600.1,1599.7,7.11230318]
[1744564762705,6.24961,1600.1,1599.7,14.6904135]
[1744564762894,6.24961,1600.1,1599.8,6.16]
[1744564763092,6.24961,1600.1,1599.8,12.41068]
[1744564763296,6.72106482,1600.1,1599.8,12.47318216]
[1744564763684,3.47145482,1600.1,1599.8,12.47312216]
[1744564763869,3.0,1600.1,1599.9,6.16]
[1744564764608,6.24896,1600.3,1600.0,7.08173]
[1744564764910,6.24896,1600.3,1600.0,13.24173]
[1744564764911,6.24895,1600.3,1600.0,13.24173]
[1744564766507,6.71895131,1600.3,1600.0,13.24173]
[1744564767904,6.24895,1600.3,1600.0,13.24173]
[1744564768078,6.24895,1600.3,1600.0,15.190937]
[1744564770220,0.02,1600.4,1600.0,8.941007]
[1744564770397,0.02,1600.4,1600.3,7.16392]
[1744564770594,0.02,1600.4,1600.3,7.22639763]
[1744564770797,0.02,1600.4,1600.3,13.32392]
[1744564771199,6.24578,1601.1,1600.7,6.24695]
[1744564771398,6.24536,1601.2,1600.8,7.0751]
[1744564771698,6.24587,1601.1,1600.9,0.70751]
[1744564772098,12.95710332,1601.1,1600.9,0.70751]
[1744564772415,6.24587,1601.1,1600.9,0.70751]
[1744564772722,6.2454,1601.2,1600.9,0.70751]
[1744564773107,12.49091,1601.2,1600.9,0.70751]
[1744564773418,6.2454,1601.2,1600.9,6.95393]
[1744564773622,6.24498,1601.3,1601.0,0.695393]
[1744564773925,6.8505267,1601.7,1601.0,0.695393]
[1744564773926,11.91592152,1602.4,1602.2,0.9151]
[1744564774084,18.04718851,1602.3,1601.9,6.215]
[1744564774287,9.65855851,1602.3,1601.9,6.215]
[1744564774507,9.65855851,1602.3,1601.9,12.4574]
[1744564774508,3.0,1602.2,1601.9,12.4574]
[1744564774916,6.24247,1602.0,1601.6,12.86100044]
[1744564775123,3.0,1602.2,1601.7,12.48635]
[1744564775124,9.24156,1602.2,1601.7,12.48635]
[1744564775289,9.24156,1602.2,1601.8,6.24286]
[1744564775490,10.96134912,1602.2,1601.7,6.24299]
[1744564775690,0.3964526,1602.3,1602.0,0.9151]
[1744564775891,0.3964526,1602.3,1602.1,12.45377]
[1744564776214,0.3964526,1602.3,1602.1,6.212]
[1744564777025,6.6374926,1602.3,1602.0,0.9151]
[1744564777221,0.3964526,1602.3,1602.2,6.24141]
[1744564777422,0.3964526,1602.3,1602.2,7.780651]
[1744564777788,0.3964526,1602.3,1602.2,7.84305402]
[1744564777988,0.3964526,1602.3,1602.2,7.780651]
[1744564778420,0.3964526,1602.3,1602.2,14.258651]
[1744564779206,0.3964526,1602.3,1602.2,13.63451]
[1744564783032,0.3964526,1602.3,1602.2,19.79451]
[1744564783525,0.3964526,1602.3,1602.2,13.5531]
[1744564783728,0.02,1603.4,1602.6,1.4187]
[1744564783894,0.02,1603.4,1603.3,10.10583]
[1744564784095,0.8877,1604.3,1603.8,6.23519]
[1744564784417,0.02,1604.4,1603.8,7.10389]